[Event "GER-chW Blitz 2019"]
[Site "Magdeburg"]
[Date "2019.05.25"]
[Round "14.6"]
[White "Michna, Marta"]
[Black "Braje, Monika"]
[Result "1-0"]
[ECO "A06"]
[WhiteElo "2355"]
[BlackElo "1781"]
[Annotator "NA"]
[PlyCount "85"]
[EventDate "2019.05.25"]
[EventType "tourn"]
[EventCountry "GER"]
[SourceTitle "playchess.com"]
[Source "ChessBase"]
[SourceQuality "1"]
[TimeControl "180+2"]

1. Nf3 {[%emt 0:00:00]} d5 {[%emt 0:00:00]} 2. g3 {[%emt 0:00:01]} Nf6 {[%emt 0:00:03]} 3. Bg2 {[%emt 0:00:01]} e6 {[%emt 0:00:02]} 4. O-O {[%emt 0:00:01]} Be7 {[%emt 0:00:01]} 5. d3 {[%emt 0:00:01]} O-O {[%emt 0:00:02]} 6. Nbd2 {[%emt 0:00:01]} c5 {[%emt 0:00:03]} 7. e4 {[%emt 0:00:02]} d4 {[%emt 0:00:03]} 8. a4 {[%emt 0:00:04]} Nc6 {[%emt 0:00:02]} 9. Nc4 {[%emt 0:00:03]} Rb8 {[%emt 0:00:07]} 10. Bd2 {[%emt 0:00:01]} a6 {[%emt 0:00:03]} 11. a5 {[%emt 0:00:02]} Nd7 {[%emt 0:00:44]} 12. h3 {[%emt 0:00:04]} b5 {[%emt 0:00:02]} 13. axb6 {[%emt 0:00:02]} Nxb6 {[%emt 0:00:02]} 14. Nxb6 {[%emt 0:00:02]} Qxb6 {[%emt 0:00:04]} 15. b3 {[%emt 0:00:07]} Qd8 {[%emt 0:00:02]} 16. Ne1 {[%emt 0:00:10]} Bb7 {[%emt 0:00:03]} 17. f4 {[%emt 0:00:06]} Qc7 {[%emt 0:00:12]} 18. Kh2 {[%emt 0:00:17]} Rfd8 {[%emt 0:00:04]} 19. h4 {[%emt 0:00:03]} e5 {[%emt 0:00:04]} 20. f5 {[%emt 0:00:02]} f6 {[%emt 0:00:01]} 21. g4 {[%emt 0:00:04]} Rf8 {[%emt 0:00:05]} 22. Bf3 {[%emt 0:00:03]} Bc8 {[%emt 0:00:06]} 23. Qe2 {[%emt 0:00:03]} Nb4 {[%emt 0:00:05]} 24. Bc1 {[%emt 0:00:07]} Bd7 {[%emt 0:00:09]} 25. Rg1 {[%emt 0:00:02]} Bb5 {[%emt 0:00:13]} 26. Qg2 {[%emt 0:00:04]} Rb7 {[%emt 0:00:07]} 27. g5 {[%emt 0:00:06]} fxg5 {[%emt 0:00:01]} 28. hxg5 {[%emt 0:00:11]} Bd8 {[%emt 0:00:01]} 29. Bd1 {[%emt 0:00:08]} Qf7 {[%emt 0:00:10]} 30. Qh3 {[%emt 0:00:04]} Bd7 {[%emt 0:00:06]} 31. Nf3 {[%emt 0:00:03]} Bc7 {[%emt 0:00:07]} 32. g6 {[%emt 0:00:26]} hxg6 {[%emt 0:00:05]} 33. fxg6 {[%emt 0:00:11]} Bxh3 {[%emt 0:00:05]} 34. gxf7+ {[%emt 0:00:01]} Rxf7 {[%emt 0:00:02]} 35. Kxh3 {[%emt 0:00:02]} Rb6 {[%emt 0:00:02]} 36. Rg3 {[%emt 0:00:09]} Kf8 {[%emt 0:00:12]} 37. Bd2 {[%emt 0:00:05]} Nc6 {[%emt 0:00:05]} 38. Be2 {[%emt 0:00:03]} Ne7 {[%emt 0:00:02]} 39. Rag1 {[%emt 0:00:04]} g6 {[%emt 0:00:05]} 40. Kg2 {[%emt 0:00:01]} Rh7 {[%emt 0:00:07]} 41. Ba5 {[%emt 0:00:03]} Rb7 {[%emt 0:00:07]} 42. Bxc7 {[%emt 0:00:02]} Rxc7 {[%emt 0:00:01]} 43. Ng5 {[%emt 0:00:01]} 1-0

[Event "GER-chW Blitz 2019"]
[Site "Magdeburg"]
[Date "2019.05.25"]
[Round "14.7"]
[White "Muetsch, Annmarie"]
[Black "Schulze, Lara"]
[Result "1/2-1/2"]
[ECO "C07"]
[WhiteElo "2266"]
[BlackElo "2160"]
[Annotator "NA"]
[PlyCount "113"]
[EventDate "2019.05.25"]
[EventType "tourn"]
[EventCountry "GER"]
[SourceTitle "playchess.com"]
[Source "ChessBase"]
[SourceQuality "1"]
[TimeControl "180+2"]

1. e4 {[%emt 0:00:00]} e6 {[%emt 0:00:00]} 2. d4 {[%emt 0:00:01]} d5 {[%emt 0:00:00]} 3. Nd2 {[%emt 0:00:01]} c5 {[%emt 0:00:00]} 4. exd5 Qxd5 {[%emt 0:00:01]} 5. dxc5 {[%emt 0:00:05]} Nf6 {[%emt 0:00:02]} 6. Ngf3 {[%emt 0:00:02]} Qxc5 {[%emt 0:00:01]} 7. Bd3 {[%emt 0:00:08]} Nbd7 {[%emt 0:00:02]} 8. O-O {[%emt 0:00:04]} Qc7 {[%emt 0:00:01]} 9. Qe2 {[%emt 0:00:04]} Be7 {[%emt 0:00:27]} 10. c3 {[%emt 0:00:13]} O-O {[%emt 0:00:07]} 11. Nb3 {[%emt 0:00:10]} Nc5 {[%emt 0:00:41]} 12. Nxc5 {[%emt 0:00:06]} Qxc5 {[%emt 0:00:02]} 13. h3 {[%emt 0:00:11]} b6 {[%emt 0:00:10]} 14. Be3 {[%emt 0:00:19]} Qh5 {[%emt 0:00:42]} 15. Bf4 {[%emt 0:00:10]} Bb7 {[%emt 0:00:07]} 16. Ne5 {[%emt 0:00:20]} Qxe2 {[%emt 0:00:12]} 17. Bxe2 {[%emt 0:00:01]} Rfd8 {[%emt 0:00:06]} 18. Rfd1 {[%emt 0:00:04]} Kf8 {[%emt 0:00:04]} 19. Bf3 {[%emt 0:00:12]} Bxf3 {[%emt 0:00:01]} 20. Nxf3 {[%emt 0:00:02]} Ne4 {[%emt 0:00:19]} 21. Kf1 {[%emt 0:00:08]} Bc5 {[%emt 0:00:03]} 22. Be3 {[%emt 0:00:19]} Bxe3 {[%emt 0:00:04]} 23. fxe3 {[%emt 0:00:01]} Ke7 {[%emt 0:00:06]} 24. Ke2 {[%emt 0:00:08]} f6 {[%emt 0:00:04]} 25. Nd4 {[%emt 0:00:05]} Rac8 {[%emt 0:00:06]} 26. g4 {[%emt 0:00:07]} h5 {[%emt 0:00:07]} 27. a4 {[%emt 0:00:06]} hxg4 {[%emt 0:00:03]} 28. hxg4 {[%emt 0:00:01]} Rh8 {[%emt 0:00:02]} 29. Nf3 {[%emt 0:00:09]} a5 {[%emt 0:00:08]} 30. Rd4 {[%emt 0:00:09]} Nc5 {[%emt 0:00:04]} 31. Rad1 {[%emt 0:00:05]} Rhd8 {[%emt 0:00:02]} 32. Rc4 {[%emt 0:00:10]} Rxd1 {[%emt 0:00:02]} 33. Kxd1 {[%emt 0:00:01]} Rd8+ {[%emt 0:00:01]} 34. Kc2 {[%emt 0:00:03]} Kd6 {[%emt 0:00:05]} 35. Rd4+ {[%emt 0:00:04]} Kc7 {[%emt 0:00:01]} 36. b3 {[%emt 0:00:03]} Rxd4 {[%emt 0:00:03]} 37. cxd4 {[%emt 0:00:03]} Ne4 {[%emt 0:00:02]} 38. Ng1 {[%emt 0:00:08]} Nf2 {[%emt 0:00:02]} 39. Ne2 {[%emt 0:00:05]} Nxg4 {[%emt 0:00:01]} 40. Nf4 {[%emt 0:00:01]} Kd6 {[%emt 0:00:01]} 41. Kd3 {[%emt 0:00:01]} Nf2+ {[%emt 0:00:01]} 42. Ke2 {[%emt 0:00:01]} Ne4 {[%emt 0:00:01]} 43. Kd3 {[%emt 0:00:01]} g5 {[%emt 0:00:01]} 44. Kxe4 {[%emt 0:00:05]} gxf4 {[%emt 0:00:01]} 45. Kxf4 {[%emt 0:00:02]} Kd5 {[%emt 0:00:03]} 46. Kf3 {[%emt 0:00:01]} e5 {[%emt 0:00:02]} 47. dxe5 {[%emt 0:00:01]} Kxe5 {[%emt 0:00:01]} 48. e4 {[%emt 0:00:04]} f5 {[%emt 0:00:05]} 49. exf5 {[%emt 0:00:02]} Kxf5 {[%emt 0:00:01]} 50. Ke3 {[%emt 0:00:00]} Ke5 {[%emt 0:00:01]} 51. Kd3 {[%emt 0:00:01]} Kd5 {[%emt 0:00:00]} 52. Kc3 {[%emt 0:00:02]} Kc5 {[%emt 0:00:01]} 53. Kc2 {[%emt 0:00:02]} Kb4 {[%emt 0:00:11]} 54. Kb2 {[%emt 0:00:00]} Kc5 {[%emt 0:00:00]} 55. Kc3 {[%emt 0:00:01]} Kd5 {[%emt 0:00:01]} 56. Kd3 {[%emt 0:00:01]} Kc5 {[%emt 0:00:01]} 57. Ke4 1/2-1/2

[Event "GER-chW Blitz 2019"]
[Site "Magdeburg"]
[Date "2019.05.25"]
[Round "14.8"]
[White "Siegl, Melina"]
[Black "Kushka, Alena"]
[Result "0-1"]
[ECO "B30"]
[WhiteElo "2029"]
[BlackElo "2148"]
[Annotator "NA"]
[PlyCount "74"]
[EventDate "2019.05.25"]
[EventType "tourn"]
[EventCountry "GER"]
[SourceTitle "playchess.com"]
[Source "ChessBase"]
[SourceQuality "1"]
[TimeControl "180+2"]

1. e4 {[%emt 0:00:00]} c5 {[%emt 0:00:00]} 2. Nf3 {[%emt 0:00:01]} Nc6 {[%emt 0:00:00]} 3. d3 {[%emt 0:00:02]} g6 {[%emt 0:00:02]} 4. g3 {[%emt 0:00:01]} Bg7 {[%emt 0:00:01]} 5. Bg2 {[%emt 0:00:01]} e6 {[%emt 0:00:05]} 6. c3 {[%emt 0:00:01]} d5 {[%emt 0:00:04]} 7. Nbd2 {[%emt 0:00:01]} Nge7 {[%emt 0:00:02]} 8. O-O {[%emt 0:00:03]} O-O {[%emt 0:00:01]} 9. Re1 {[%emt 0:00:01]} Qc7 {[%emt 0:00:07]} 10. Nf1 {[%emt 0:00:06]} b6 {[%emt 0:00:07]} 11. h4 {[%emt 0:00:03]} dxe4 {[%emt 0:00:09]} 12. dxe4 {[%emt 0:00:01]} Rd8 {[%emt 0:00:06]} 13. Qe2 {[%emt 0:00:04]} a5 {[%emt 0:00:05]} 14. Ng5 {[%emt 0:00:35]} Ne5 {[%emt 0:00:22]} 15. Bf4 {[%emt 0:00:30]} Ba6 {[%emt 0:00:13]} 16. Qe3 {[%emt 0:00:05]} Qd7 {[%emt 0:00:22]} 17. Rad1 {[%emt 0:00:07]} Qb5 {[%emt 0:00:02]} 18. b3 {[%emt 0:00:16]} c4 {[%emt 0:00:17]} 19. b4 {[%emt 0:00:31]} axb4 {[%emt 0:00:09]} 20. Rb1 {[%emt 0:00:01]} Nd3 {[%emt 0:00:03]} 21. Re2 {[%emt 0:00:30]} e5 {[%emt 0:00:01]} 22. cxb4 {[%emt 0:00:09]} exf4 {[%emt 0:00:02]} 23. gxf4 {[%emt 0:00:02]} h6 {[%emt 0:00:10]} 24. Nf3 {[%emt 0:00:07]} Rac8 {[%emt 0:00:10]} 25. Ng3 {[%emt 0:00:06]} c3 {[%emt 0:00:03]} 26. Rc2 {[%emt 0:00:03]} Qa4 {[%emt 0:00:14]} 27. Qe2 {[%emt 0:00:12]} Nxb4 {[%emt 0:00:05]} 28. Rxb4 {[%emt 0:00:04]} Qxb4 {[%emt 0:00:06]} 29. Qxa6 {[%emt 0:00:01]} Qb1+ {[%emt 0:00:03]} 30. Kh2 {[%emt 0:00:01]} Qxc2 {[%emt 0:00:02]} 31. e5 {[%emt 0:00:01]} Qxf2 {[%emt 0:00:07]} 32. Qb7 {[%emt 0:00:10]} Qc5 {[%emt 0:00:05]} 33. Ne4 {[%emt 0:00:02]} Qc7 {[%emt 0:00:02]} 34. Qa6 {[%emt 0:00:02]} c2 {[%emt 0:00:02]} 35. Nd6 {[%emt 0:00:04]} c1=Q {[%emt 0:00:07]} 36. Nxc8 {[%emt 0:00:01]} Rxc8 {[%emt 0:00:02]} 37. Qd3 {[%emt 0:00:03]} Qxf4+ {[%emt 0:00:02]} 0-1

[Event "GER-chW Blitz 2019"]
[Site "Magdeburg"]
[Date "2019.05.25"]
[Round "14.9"]
[White "Hofmann, Karina"]
[Black "Ries, Jutta"]
[Result "0-1"]
[ECO "A02"]
[WhiteElo "1700"]
[BlackElo "2017"]
[Annotator "NA"]
[PlyCount "64"]
[EventDate "2019.05.25"]
[EventType "tourn"]
[EventCountry "GER"]
[SourceTitle "playchess.com"]
[Source "ChessBase"]
[SourceQuality "1"]
[TimeControl "180+2"]

1. f4 {[%emt 0:00:00]} Nc6 {[%emt 0:00:07]} 2. Nf3 {[%emt 0:00:01]} d6 {[%emt 0:00:07]} 3. e3 {[%emt 0:00:01]} e5 {[%emt 0:00:02]} 4. Bb5 {[%emt 0:00:01]} Bg4 {[%emt 0:00:09]} 5. fxe5 {[%emt 0:00:05]} dxe5 {[%emt 0:00:30]} 6. h3 {[%emt 0:00:03]} Bd7 {[%emt 0:00:16]} 7. O-O {[%emt 0:00:11]} Bd6 {[%emt 0:00:04]} 8. e4 {[%emt 0:00:14]} Qe7 {[%emt 0:00:06]} 9. d3 {[%emt 0:00:07]} O-O-O {[%emt 0:00:05]} 10. Nc3 {[%emt 0:00:10]} f6 {[%emt 0:00:16]} 11. Nd5 {[%emt 0:00:02]} Qe6 {[%emt 0:00:04]} 12. c4 {[%emt 0:00:07]} a6 {[%emt 0:00:01]} 13. Bxc6 {[%emt 0:00:06]} Bxc6 {[%emt 0:00:01]} 14. b4 {[%emt 0:00:03]} Ne7 {[%emt 0:00:04]} 15. c5 {[%emt 0:00:06]} Bxc5+ {[%emt 0:00:20]} 16. bxc5 {[%emt 0:00:02]} Bxd5 {[%emt 0:00:17]} 17. exd5 {[%emt 0:00:01]} Nxd5 {[%emt 0:00:01]} 18. Re1 {[%emt 0:00:25]} Qc6 {[%emt 0:00:02]} 19. Ba3 {[%emt 0:00:21]} Nf4 {[%emt 0:00:07]} 20. d4 {[%emt 0:00:32]} Rxd4 {[%emt 0:00:15]} 21. Qc2 {[%emt 0:00:16]} Nxh3+ {[%emt 0:00:18]} 22. Kh1 {[%emt 0:00:13]} Rf4 {[%emt 0:00:04]} 23. Re3 {[%emt 0:00:16]} Rd8 {[%emt 0:00:12]} 24. gxh3 {[%emt 0:00:02]} Rxf3 {[%emt 0:00:01]} 25. Rxf3 {[%emt 0:00:03]} Qxf3+ {[%emt 0:00:01]} 26. Qg2 {[%emt 0:00:01]} Qxa3 {[%emt 0:00:01]} 27. Rb1 {[%emt 0:00:03]} c6 {[%emt 0:00:05]} 28. h4 {[%emt 0:00:01]} Qxc5 {[%emt 0:00:02]} 29. a4 {[%emt 0:00:01]} Rd4 {[%emt 0:00:02]} 30. a5 {[%emt 0:00:02]} Rxh4+ {[%emt 0:00:02]} 31. Qh2 {[%emt 0:00:02]} Rxh2+ {[%emt 0:00:02]} 32. Kxh2 {[%emt 0:00:00]} Qc2+ {[%emt 0:00:02]} 0-1

[Event "GER-chW Blitz 2019"]
[Site "Magdeburg"]
[Date "2019.05.25"]
[Round "14.10"]
[White "Birkholz, Olga"]
[Black "Lubbe, Melanie"]
[Result "0-1"]
[ECO "B20"]
[WhiteElo "2031"]
[BlackElo "2278"]
[Annotator "NA"]
[PlyCount "96"]
[EventDate "2019.05.25"]
[EventType "tourn"]
[EventCountry "GER"]
[SourceTitle "playchess.com"]
[Source "ChessBase"]
[SourceQuality "1"]
[TimeControl "180+2"]

1. e4 {[%emt 0:00:00]} c5 {[%emt 0:00:00]} 2. b3 {[%emt 0:00:00]} d6 {[%emt 0:00:02]} 3. Bb2 {[%emt 0:00:01]} e5 {[%emt 0:00:01]} 4. Ne2 {[%emt 0:00:03]} Nf6 {[%emt 0:00:01]} 5. d3 {[%emt 0:00:01]} Be7 {[%emt 0:00:02]} 6. g3 {[%emt 0:00:02]} O-O {[%emt 0:00:01]} 7. Bg2 Nc6 8. f4 {[%emt 0:00:02]} Nd4 {[%emt 0:00:12]} 9. Nxd4 {[%emt 0:00:10]} cxd4 {[%emt 0:00:02]} 10. O-O {[%emt 0:00:02]} Ng4 {[%emt 0:00:03]} 11. Bc1 {[%emt 0:00:03]} Rb8 {[%emt 0:00:50]} 12. Qe2 {[%emt 0:00:08]} Qc7 {[%emt 0:00:16]} 13. h3 {[%emt 0:00:13]} Ne3 {[%emt 0:00:02]} 14. Bxe3 {[%emt 0:00:09]} dxe3 {[%emt 0:00:00]} 15. c4 {[%emt 0:00:08]} exf4 {[%emt 0:00:05]} 16. gxf4 {[%emt 0:00:02]} Bf6 {[%emt 0:00:03]} 17. Na3 {[%emt 0:00:06]} Bxa1 {[%emt 0:00:03]} 18. Rxa1 {[%emt 0:00:01]} Qa5 {[%emt 0:00:10]} 19. Nc2 {[%emt 0:00:04]} Qc3 {[%emt 0:00:03]} 20. Rf1 {[%emt 0:00:10]} Bd7 {[%emt 0:00:02]} 21. Nxe3 {[%emt 0:00:05]} b5 {[%emt 0:00:07]} 22. Kh2 {[%emt 0:00:10]} bxc4 {[%emt 0:00:02]} 23. dxc4 {[%emt 0:00:02]} Bc6 {[%emt 0:00:08]} 24. Ng4 {[%emt 0:00:24]} Rfe8 {[%emt 0:00:04]} 25. Rf3 {[%emt 0:00:23]} Qc1 {[%emt 0:00:11]} 26. Re3 {[%emt 0:00:04]} Re7 {[%emt 0:00:10]} 27. f5 {[%emt 0:00:22]} f6 {[%emt 0:00:07]} 28. Nf2 {[%emt 0:00:05]} Rbe8 {[%emt 0:00:04]} 29. Qd3 {[%emt 0:00:06]} Qb2 {[%emt 0:00:02]} 30. Qxd6 {[%emt 0:00:04]} Qxf2 {[%emt 0:00:04]} 31. Qxc6 {[%emt 0:00:08]} Qxe3 {[%emt 0:00:03]} 32. Qd5+ {[%emt 0:00:02]} Kh8 {[%emt 0:00:01]} 33. c5 {[%emt 0:00:06]} h5 {[%emt 0:00:03]} 34. Qd1 {[%emt 0:00:05]} Qg5 {[%emt 0:00:06]} 35. c6 {[%emt 0:00:04]} h4 {[%emt 0:00:01]} 36. Qd6 {[%emt 0:00:04]} Qg3+ {[%emt 0:00:03]} 37. Qxg3 {[%emt 0:00:01]} hxg3+ {[%emt 0:00:00]} 38. Kxg3 {[%emt 0:00:01]} Rc7 {[%emt 0:00:02]} 39. e5 {[%emt 0:00:05]} Rxe5 {[%emt 0:00:01]} 40. b4 {[%emt 0:00:01]} a5 {[%emt 0:00:02]} 41. Kf4 {[%emt 0:00:02]} axb4 42. h4 {[%emt 0:00:10]} Ra5 {[%emt 0:00:04]} 43. Be4 {[%emt 0:00:04]} Rxa2 {[%emt 0:00:02]} 44. Ke3 {[%emt 0:00:02]} b3 {[%emt 0:00:01]} 45. Kd3 {[%emt 0:00:01]} b2 {[%emt 0:00:02]} 46. Kc2 {[%emt 0:00:01]} Ra4 {[%emt 0:00:04]} 47. Bf3 {[%emt 0:00:04]} Rb4 {[%emt 0:00:02]} 48. Kb1 {[%emt 0:00:02]} Ra7 {[%emt 0:00:01]} 0-1

[Event "GER-chW Blitz 2019"]
[Site "Magdeburg"]
[Date "2019.05.25"]
[Round "14.11"]
[White "Rath, Alina"]
[Black "Fuchs, Judith"]
[Result "0-1"]
[ECO "A25"]
[WhiteElo "2042"]
[BlackElo "2218"]
[Annotator "NA"]
[PlyCount "142"]
[EventDate "2019.05.25"]
[EventType "tourn"]
[EventCountry "GER"]
[SourceTitle "playchess.com"]
[Source "ChessBase"]
[SourceQuality "1"]
[TimeControl "180+2"]

1. c4 {[%emt 0:00:00]} e5 {[%emt 0:00:00]} 2. Nc3 {[%emt 0:00:00]} Nc6 {[%emt 0:00:00]} 3. g3 {[%emt 0:00:00]} Bc5 {[%emt 0:00:01]} 4. Bg2 {[%emt 0:00:01]} f5 {[%emt 0:00:02]} 5. e3 {[%emt 0:00:03]} Nf6 {[%emt 0:00:03]} 6. Nge2 {[%emt 0:00:01]} O-O {[%emt 0:00:06]} 7. O-O {[%emt 0:00:02]} e4 {[%emt 0:00:18]} 8. d4 {[%emt 0:00:09]} exd3 {[%emt 0:00:03]} 9. Qxd3 {[%emt 0:00:02]} d6 {[%emt 0:00:06]} 10. b3 {[%emt 0:00:06]} Qe8 {[%emt 0:00:16]} 11. Bb2 {[%emt 0:00:06]} Ne5 {[%emt 0:00:11]} 12. Qd1 {[%emt 0:00:02]} Qh5 {[%emt 0:00:20]} 13. Nf4 {[%emt 0:00:07]} Qh6 {[%emt 0:00:15]} 14. Ncd5 {[%emt 0:00:06]} Nxd5 {[%emt 0:00:29]} 15. Qxd5+ {[%emt 0:00:10]} Kh8 {[%emt 0:00:02]} 16. Bxe5 {[%emt 0:00:07]} c6 {[%emt 0:00:03]} 17. Bxg7+ {[%emt 0:00:14]} Qxg7 {[%emt 0:00:01]} 18. Qd3 {[%emt 0:00:05]} Bd7 {[%emt 0:00:09]} 19. Rac1 {[%emt 0:00:06]} Rae8 {[%emt 0:00:07]} 20. Qc3 {[%emt 0:00:06]} Qxc3 {[%emt 0:00:06]} 21. Rxc3 {[%emt 0:00:01]} Rf6 {[%emt 0:00:09]} 22. Rd1 {[%emt 0:00:15]} Bc8 {[%emt 0:00:03]} 23. Rcd3 {[%emt 0:00:06]} a5 {[%emt 0:00:02]} 24. Ne2 {[%emt 0:00:06]} Be6 {[%emt 0:00:08]} 25. Nc3 {[%emt 0:00:04]} Bf7 {[%emt 0:00:05]} 26. Na4 {[%emt 0:00:03]} Bb4 {[%emt 0:00:00]} 27. Nc3 {[%emt 0:00:10]} Bh5 {[%emt 0:00:02]} 28. Ra1 {[%emt 0:00:09]} Bg6 {[%emt 0:00:05]} 29. a3 {[%emt 0:00:43]} f4 {[%emt 0:00:04]} 30. e4 {[%emt 0:00:05]} Bxc3 {[%emt 0:00:08]} 31. Rxc3 {[%emt 0:00:01]} Bxe4 {[%emt 0:00:07]} 32. Re1 {[%emt 0:00:14]} Bg6 {[%emt 0:00:02]} 33. Rxe8+ Bxe8 {[%emt 0:00:01]} 34. gxf4 {[%emt 0:00:04]} Rxf4 {[%emt 0:00:01]} 35. Re3 {[%emt 0:00:00]} Bf7 {[%emt 0:00:09]} 36. Bf1 {[%emt 0:00:02]} a4 {[%emt 0:00:07]} 37. bxa4 {[%emt 0:00:04]} Bxc4 {[%emt 0:00:05]} 38. Re8+ {[%emt 0:00:03]} Kg7 {[%emt 0:00:01]} 39. Bxc4 {[%emt 0:00:11]} Rxc4 {[%emt 0:00:02]} 40. Re7+ {[%emt 0:00:02]} Kg6 {[%emt 0:00:01]} 41. Rxb7 {[%emt 0:00:01]} Rxa4 42. Rb6 {[%emt 0:00:01]} Rc4 {[%emt 0:00:03]} 43. a4 {[%emt 0:00:01]} Kf5 {[%emt 0:00:05]} 44. a5 {[%emt 0:00:01]} Ke5 {[%emt 0:00:01]} 45. a6 {[%emt 0:00:07]} c5 {[%emt 0:00:02]} 46. a7 {[%emt 0:00:03]} Ra4 {[%emt 0:00:00]} 47. Rb7 {[%emt 0:00:01]} c4 {[%emt 0:00:03]} 48. Kf1 {[%emt 0:00:02]} Kd4 {[%emt 0:00:01]} 49. Rxh7 {[%emt 0:00:04]} d5 {[%emt 0:00:02]} 50. Ke2 {[%emt 0:00:04]} Ra2+ {[%emt 0:00:01]} 51. Kf3 {[%emt 0:00:01]} Kd3 {[%emt 0:00:00]} 52. Rd7 {[%emt 0:00:04]} d4 {[%emt 0:00:01]} 53. h4 {[%emt 0:00:02]} c3 {[%emt 0:00:01]} 54. Rc7 {[%emt 0:00:02]} c2 {[%emt 0:00:00]} 55. h5 {[%emt 0:00:01]} Rxa7 {[%emt 0:00:03]} 56. Rxa7 {[%emt 0:00:07]} c1=Q {[%emt 0:00:02]} 57. Re7 {[%emt 0:00:06]} Qd1+ {[%emt 0:00:02]} 58. Kg3 {[%emt 0:00:01]} Qxh5 {[%emt 0:00:01]} 59. Ra7 {[%emt 0:00:07]} Qe5+ {[%emt 0:00:02]} 60. Kg2 {[%emt 0:00:01]} Qe4+ {[%emt 0:00:01]} 61. Kg3 {[%emt 0:00:01]} Qg6+ {[%emt 0:00:02]} 62. Kf3 {[%emt 0:00:01]} Qc6+ {[%emt 0:00:01]} 63. Kg3 {[%emt 0:00:00]} Qc5 {[%emt 0:00:02]} 64. Ra1 {[%emt 0:00:05]} Ke4 {[%emt 0:00:02]} 65. Re1+ {[%emt 0:00:01]} Kf5 {[%emt 0:00:01]} 66. Rh1 {[%emt 0:00:01]} Qc3+ {[%emt 0:00:01]} 67. Kg2 {[%emt 0:00:02]} d3 {[%emt 0:00:02]} 68. Rh3 {[%emt 0:00:03]} Qc6+ {[%emt 0:00:03]} 69. Kh2 {[%emt 0:00:01]} Qd6+ {[%emt 0:00:01]} 70. Kg2 {[%emt 0:00:01]} d2 {[%emt 0:00:02]} 71. Rf3+ {[%emt 0:00:01]} Ke5 0-1

[Event "GER-chW Blitz 2019"]
[Site "Magdeburg"]
[Date "2019.05.25"]
[Round "14.12"]
[White "Silz, Elisa"]
[Black "Kotyk, Valeriya"]
[Result "1/2-1/2"]
[ECO "D37"]
[WhiteElo "1977"]
[BlackElo "1739"]
[Annotator "NA"]
[PlyCount "80"]
[EventDate "2019.05.25"]
[EventType "tourn"]
[EventCountry "GER"]
[SourceTitle "playchess.com"]
[Source "ChessBase"]
[SourceQuality "1"]
[TimeControl "180+2"]

1. d4 {[%emt 0:00:00]} Nf6 {[%emt 0:00:00]} 2. Nf3 {[%emt 0:00:00]} d5 {[%emt 0:00:01]} 3. c4 {[%emt 0:00:00]} e6 {[%emt 0:00:01]} 4. Nc3 {[%emt 0:00:01]} dxc4 {[%emt 0:00:04]} 5. e3 {[%emt 0:00:01]} Be7 {[%emt 0:00:03]} 6. Bxc4 O-O {[%emt 0:00:01]} 7. O-O a6 8. a4 {[%emt 0:00:06]} b6 {[%emt 0:00:06]} 9. e4 {[%emt 0:00:06]} Bb7 {[%emt 0:00:02]} 10. e5 {[%emt 0:00:01]} Nd5 {[%emt 0:00:03]} 11. Nxd5 {[%emt 0:00:11]} Bxd5 {[%emt 0:00:01]} 12. Bd3 {[%emt 0:00:11]} c5 {[%emt 0:00:05]} 13. Be3 {[%emt 0:00:10]} Nd7 {[%emt 0:00:10]} 14. Rc1 {[%emt 0:00:06]} Qb8 {[%emt 0:00:19]} 15. Qc2 {[%emt 0:00:13]} g6 {[%emt 0:00:02]} 16. Bh6 {[%emt 0:00:09]} Rc8 {[%emt 0:00:03]} 17. Qe2 {[%emt 0:00:12]} cxd4 {[%emt 0:00:05]} 18. Nxd4 {[%emt 0:00:01]} Qxe5 {[%emt 0:00:06]} 19. Qxe5 {[%emt 0:00:11]} Nxe5 {[%emt 0:00:01]} 20. Be2 {[%emt 0:00:11]} Bc5 {[%emt 0:00:01]} 21. Rcd1 {[%emt 0:00:10]} Nc4 {[%emt 0:00:07]} 22. Bxc4 {[%emt 0:00:11]} Bxc4 {[%emt 0:00:02]} 23. Rfe1 {[%emt 0:00:04]} Bxd4 {[%emt 0:00:07]} 24. Rxd4 {[%emt 0:00:02]} Bd5 {[%emt 0:00:01]} 25. Rd2 {[%emt 0:00:14]} Rc7 {[%emt 0:00:03]} 26. h3 {[%emt 0:00:03]} Rac8 {[%emt 0:00:00]} 27. Be3 {[%emt 0:00:04]} b5 28. axb5 {[%emt 0:00:02]} axb5 {[%emt 0:00:05]} 29. b4 {[%emt 0:00:02]} Rc2 {[%emt 0:00:04]} 30. Red1 {[%emt 0:00:03]} Rxd2 {[%emt 0:00:01]} 31. Rxd2 {[%emt 0:00:01]} Rc1+ {[%emt 0:00:04]} 32. Kh2 {[%emt 0:00:01]} Rc4 {[%emt 0:00:05]} 33. Bc5 {[%emt 0:00:01]} Kg7 {[%emt 0:00:07]} 34. Rd1 {[%emt 0:00:03]} Re4 {[%emt 0:00:04]} 35. Ra1 {[%emt 0:00:02]} Bc4 {[%emt 0:00:02]} 36. Ra7 {[%emt 0:00:02]} Re2 {[%emt 0:00:02]} 37. Kg3 {[%emt 0:00:02]} Rd2 {[%emt 0:00:04]} 38. Ra8 {[%emt 0:00:05]} h5 {[%emt 0:00:03]} 39. Bf8+ {[%emt 0:00:02]} Kf6 {[%emt 0:00:01]} 40. Bc5 {[%emt 0:00:02]} Bd5 {[%emt 0:00:04]} 1/2-1/2

[Event "GER-chW Blitz 2019"]
[Site "Magdeburg"]
[Date "2019.05.25"]
[Round "15.1"]
[White "Kotyk, Valeriya"]
[Black "Roesler, Hannah Clara Hed"]
[Result "1-0"]
[ECO "A45"]
[WhiteElo "1739"]
[BlackElo "1619"]
[Annotator "NA"]
[PlyCount "57"]
[EventDate "2019.05.25"]
[EventType "tourn"]
[EventCountry "GER"]
[SourceTitle "playchess.com"]
[Source "ChessBase"]
[SourceQuality "1"]
[TimeControl "180+2"]

1. d4 {[%emt 0:00:00]} Nf6 {[%emt 0:00:00]} 2. Bg5 {[%emt 0:00:00]} Ne4 {[%emt 0:00:06]} 3. Bf4 {[%emt 0:00:00]} e6 {[%emt 0:00:16]} 4. Nd2 {[%emt 0:00:07]} Nxd2 {[%emt 0:00:27]} 5. Qxd2 {[%emt 0:00:01]} d5 {[%emt 0:00:08]} 6. e3 {[%emt 0:00:01]} c5 {[%emt 0:00:05]} 7. a3 {[%emt 0:00:02]} Nc6 {[%emt 0:00:03]} 8. Nf3 {[%emt 0:00:02]} Be7 {[%emt 0:00:18]} 9. dxc5 {[%emt 0:00:01]} Bxc5 {[%emt 0:00:02]} 10. b4 {[%emt 0:00:04]} Bb6 {[%emt 0:00:16]} 11. Rd1 {[%emt 0:00:03]} O-O {[%emt 0:00:04]} 12. c4 {[%emt 0:00:22]} dxc4 {[%emt 0:00:19]} 13. Qxd8 {[%emt 0:00:04]} Rxd8 {[%emt 0:00:02]} 14. Rxd8+ {[%emt 0:00:01]} Bxd8 {[%emt 0:00:01]} 15. Bxc4 {[%emt 0:00:02]} b6 {[%emt 0:00:14]} 16. Ke2 {[%emt 0:00:04]} Bb7 {[%emt 0:00:02]} 17. Rd1 {[%emt 0:00:01]} Bf6 {[%emt 0:00:09]} 18. Rd7 {[%emt 0:00:11]} Bc8 {[%emt 0:00:19]} 19. Rc7 {[%emt 0:00:04]} Nd8 {[%emt 0:00:07]} 20. Ne5 {[%emt 0:00:09]} Bxe5 {[%emt 0:00:07]} 21. Bxe5 {[%emt 0:00:01]} f6 {[%emt 0:00:03]} 22. Bb2 {[%emt 0:00:02]} Kh8 {[%emt 0:00:08]} 23. f4 {[%emt 0:00:02]} e5 {[%emt 0:00:12]} 24. h3 {[%emt 0:00:07]} Ne6 {[%emt 0:00:06]} 25. Re7 {[%emt 0:00:08]} Nf8 {[%emt 0:00:06]} 26. fxe5 {[%emt 0:00:04]} f5 {[%emt 0:00:03]} 27. e6 {[%emt 0:00:04]} Bb7 {[%emt 0:00:07]} 28. Bxg7+ {[%emt 0:00:03]} Kg8 {[%emt 0:00:01]} 29. Rxb7 {[%emt 0:00:06]} 1-0